[Event "Nordic Chess-ch 2019"]
[Site "Sarpsborg"]
[Date "2019.06.25"]
[Round "7.20"]
[White "Gonzalez, Francisco Silva"]
[Black "Stellas, Dimitrios"]
[Result "1-0"]
[ECO "D55"]
[WhiteElo "2095"]
[BlackElo "1976"]
[Annotator "NA"]
[PlyCount "105"]
[EventDate "2019.06.21"]
[EventType "swiss"]
[EventCountry "NOR"]
[SourceTitle "playchess.com"]
[Source "ChessBase"]
[SourceQuality "1"]
[TimeControl "40/5400+30:1800+30"]

1. d4 {[%emt 0:06:31]} d5 {[%emt 0:00:00]} 2. c4 {[%emt 0:00:31]} e6 {[%emt 0:00:27]} 3. Nc3 {[%emt 0:02:08]} Nf6 {[%emt 0:00:41]} 4. Bg5 {[%emt 0:00:07]} Be7 {[%emt 0:00:43]} 5. e3 {[%emt 0:00:06]} O-O {[%emt 0:00:42]} 6. Nf3 {[%emt 0:00:08]} b6 {[%emt 0:00:58]} 7. Qc2 {[%emt 0:00:21]} Bb7 {[%emt 0:02:09]} 8. Rd1 {[%emt 0:00:11]} Nbd7 {[%emt 0:03:07]} 9. Bd3 {[%emt 0:00:09]} dxc4 {[%emt 0:03:55]} 10. Bxc4 {[%emt 0:00:09]} Nd5 {[%emt 0:02:40]} 11. h4 {[%emt 0:04:21]} Nxc3 {[%emt 0:21:31]} 12. bxc3 {[%emt 0:00:34]} Re8 {[%emt 0:02:54]} 13. e4 {[%emt 0:03:39]} Nf8 {[%emt 0:04:15]} 14. Bb5 {[%emt 0:01:27]} c6 {[%emt 0:00:43]} 15. Ba4 {[%emt 0:01:18]} Qc7 {[%emt 0:04:18]} 16. h5 {[%emt 0:03:38]} Bxg5 {[%emt 0:01:29]} 17. Nxg5 {[%emt 0:00:30]} h6 {[%emt 0:02:29]} 18. Nf3 {[%emt 0:02:11]} b5 {[%emt 0:02:57]} 19. Bb3 {[%emt 0:00:13]} c5 {[%emt 0:00:15]} 20. Qe2 {[%emt 0:00:32]} cxd4 {[%emt 0:02:22]} 21. cxd4 {[%emt 0:00:13]} a5 {[%emt 0:05:24]} 22. O-O {[%emt 0:05:30]} a4 {[%emt 0:03:24]} 23. Bc2 {[%emt 0:00:21]} b4 {[%emt 0:01:33]} 24. Bd3 {[%emt 0:00:22]} Red8 {[%emt 0:10:13]} 25. Rb1 {[%emt 0:01:22]} Qa5 {[%emt 0:00:20]} 26. Qd2 {[%emt 0:00:39]} Qxh5 {[%emt 0:03:13]} 27. Rxb4 {[%emt 0:01:04]} Ba6 {[%emt 0:01:57]} 28. Bxa6 {[%emt 0:04:01]} Rxa6 {[%emt 0:00:16]} 29. Qd3 {[%emt 0:00:24]} Qa5 {[%emt 0:03:57]} 30. Rfb1 {[%emt 0:01:28]} Ra7 {[%emt 0:02:35]} 31. Qc2 {[%emt 0:01:02]} Ng6 {[%emt 0:01:12]} 32. e5 {[%emt 0:03:27]} Nf4 {[%emt 0:02:50]} 33. Rb8 {[%emt 0:00:34]} Rad7 {[%emt 0:01:18]} 34. R1b5 {[%emt 0:01:07]} Qa7 {[%emt 0:01:08]} 35. Rxd8+ {[%emt 0:09:45]} Rxd8 {[%emt 0:00:01]} 36. Qd2 {[%emt 0:00:15]} g5 {[%emt 0:03:42]} 37. Ra5 {[%emt 0:04:13]} Qb7 {[%emt 0:00:47]} 38. Rxa4 {[%emt 0:00:37]} Qe4 {[%emt 0:02:36]} 39. Kh2 {[%emt 0:02:15]} Rc8 {[%emt 0:01:14]} 40. Qe3 {[%emt 0:01:43]} Qg6 {[%emt 0:02:34]} 41. Ng1 {[%emt 1:02:51]} Qh5+ {[%emt 0:09:15]} 42. Nh3 {[%emt 0:00:00]} Nd5 {[%emt 0:03:01]} 43. Qg3 {[%emt 0:00:00]} Rc3 {[%emt 0:02:15]} 44. f3 {[%emt 0:00:00]} Ne3 {[%emt 0:03:00]} 45. Qe1 {[%emt 0:00:00]} Nd5 {[%emt 0:06:25]} 46. Ra8+ {[%emt 0:00:00]} Kg7 {[%emt 0:00:19]} 47. Rd8 {[%emt 0:00:00]} Rc2 {[%emt 0:01:48]} 48. Qe4 {[%emt 0:00:00]} Rxa2 {[%emt 0:01:00]} 49. Qb1 {[%emt 0:00:00]} Re2 {[%emt 0:03:38]} 50. Qb8 {[%emt 0:00:00]} Ne7 {[%emt 0:02:46]} 51. Rh8 {[%emt 0:00:00]} Qxf3 {[%emt 0:02:40]} 52. Qf8+ {[%emt 0:00:00]} Kg6 {[%emt 0:00:14]} 53. Rxh6+ {[%emt 0:00:00]} 1-0

[Event "Nordic Chess-ch 2019"]
[Site "Sarpsborg"]
[Date "2019.06.25"]
[Round "7.21"]
[White "Kristiansen, Rune Harald"]
[Black "Fernandez, Juan Pablo"]
[Result "1/2-1/2"]
[ECO "A46"]
[WhiteElo "1849"]
[BlackElo "2066"]
[Annotator "NA"]
[PlyCount "97"]
[EventDate "2019.06.21"]
[EventType "swiss"]
[EventCountry "NOR"]
[SourceTitle "playchess.com"]
[Source "ChessBase"]
[SourceQuality "1"]
[TimeControl "40/5400+30:1800+30"]

1. d4 {[%emt 0:00:00]} Nf6 {[%emt 0:00:00]} 2. Nf3 {[%emt 0:00:10]} e6 {[%emt 0:00:09]} 3. Bg5 {[%emt 0:00:32]} h6 {[%emt 0:01:17]} 4. Bh4 {[%emt 0:00:25]} c5 {[%emt 0:01:54]} 5. e3 {[%emt 0:11:07]} b6 {[%emt 0:00:33]} 6. c3 {[%emt 0:01:21]} Bb7 {[%emt 0:00:58]} 7. Nbd2 {[%emt 0:02:55]} Be7 {[%emt 0:00:38]} 8. Bd3 {[%emt 0:02:14]} O-O {[%emt 0:09:44]} 9. Bb1 {[%emt 0:01:37]} d5 {[%emt 0:07:13]} 10. Bxf6 {[%emt 0:02:55]} Bxf6 {[%emt 0:07:06]} 11. Qc2 {[%emt 0:06:17]} Re8 {[%emt 0:00:32]} 12. Qh7+ {[%emt 0:03:57]} Kf8 {[%emt 0:00:04]} 13. Bc2 {[%emt 0:10:52]} Nd7 {[%emt 0:08:51]} 14. Ne5 {[%emt 0:05:26]} Nxe5 {[%emt 0:15:11]} 15. dxe5 {[%emt 0:00:11]} Bxe5 {[%emt 0:00:04]} 16. Ba4 {[%emt 0:00:43]} Qc7 {[%emt 0:06:59]} 17. Bxe8 {[%emt 0:01:05]} Rxe8 {[%emt 0:00:15]} 18. f4 {[%emt 0:04:40]} Bf6 {[%emt 0:00:53]} 19. O-O {[%emt 0:00:15]} d4 {[%emt 0:08:05]} 20. cxd4 {[%emt 0:01:40]} cxd4 {[%emt 0:00:07]} 21. Rac1 {[%emt 0:00:40]} Qd7 {[%emt 0:07:02]} 22. e4 {[%emt 0:01:03]} e5 {[%emt 0:00:17]} 23. fxe5 {[%emt 0:05:26]} Rxe5 {[%emt 0:02:53]} 24. Rxf6 {[%emt 0:04:16]} gxf6 {[%emt 0:00:08]} 25. Qxh6+ {[%emt 0:03:44]} Ke7 {[%emt 0:00:22]} 26. Qf4 {[%emt 0:01:42]} Rc5 {[%emt 0:01:29]} 27. Rxc5 {[%emt 0:04:34]} bxc5 {[%emt 0:00:06]} 28. h4 {[%emt 0:00:17]} Qd6 {[%emt 0:01:16]} 29. Qxd6+ {[%emt 0:05:17]} Kxd6 {[%emt 0:00:01]} 30. h5 {[%emt 0:00:20]} Ke7 {[%emt 0:01:06]} 31. Kf2 {[%emt 0:00:07]} Kf8 {[%emt 0:02:57]} 32. Kg3 {[%emt 0:02:06]} c4 {[%emt 0:01:37]} 33. Nxc4 {[%emt 0:01:11]} Bxe4 {[%emt 0:00:07]} 34. Nd2 {[%emt 0:00:26]} Bd5 {[%emt 0:01:19]} 35. a3 {[%emt 0:00:48]} Kg7 {[%emt 0:04:42]} 36. Nf3 {[%emt 0:03:45]} Kh6 {[%emt 0:02:42]} 37. Nxd4 {[%emt 0:00:10]} Kxh5 {[%emt 0:00:05]} 38. b4 {[%emt 0:01:14]} Kg5 {[%emt 0:02:35]} 39. b5 {[%emt 0:03:12]} f5 {[%emt 0:07:10]} 40. Nc6 {[%emt 0:00:25]} f4+ {[%emt 0:00:43]} 41. Kf2 {[%emt 0:30:10]} Kf6 {[%emt 0:09:39]} 42. Nxa7 {[%emt 0:00:00]} Ke5 {[%emt 0:03:43]} 43. a4 {[%emt 0:00:00]} Kd6 {[%emt 0:02:50]} 44. a5 {[%emt 0:00:00]} Kc5 {[%emt 0:02:38]} 45. a6 {[%emt 0:00:00]} Kb6 {[%emt 0:02:46]} 46. Nc8+ {[%emt 0:04:21]} Kxb5 {[%emt 0:01:05]} 47. a7 {[%emt 0:00:42]} Ka6 {[%emt 0:01:20]} 48. a8=Q+ {[%emt 0:00:23]} Bxa8 {[%emt 0:00:12]} 49. Nd6 {[%emt 0:09:49]} 1/2-1/2

[Event "Nordic Chess-ch 2019"]
[Site "Sarpsborg"]
[Date "2019.06.25"]
[Round "7.22"]
[White "Unneland, Mathias"]
[Black "Kreken, Eivind Grunt"]
[Result "1-0"]
[ECO "D83"]
[WhiteElo "1980"]
[BlackElo "1784"]
[Annotator "NA"]
[PlyCount "105"]
[EventDate "2019.06.21"]
[EventType "swiss"]
[EventCountry "NOR"]
[SourceTitle "playchess.com"]
[Source "ChessBase"]
[SourceQuality "1"]
[TimeControl "40/5400+30:1800+30"]

1. d4 {[%emt 0:00:00]} Nf6 {[%emt 0:00:00]} 2. c4 {[%emt 0:00:00]} g6 {[%emt 0:00:00]} 3. Nc3 {[%emt 0:00:00]} d5 {[%emt 0:00:00]} 4. Bf4 {[%emt 0:00:01]} Bg7 {[%emt 0:00:11]} 5. Rc1 {[%emt 0:00:12]} O-O {[%emt 0:01:00]} 6. e3 {[%emt 0:00:04]} Be6 {[%emt 0:00:18]} 7. Qb3 {[%emt 0:04:39]} c5 {[%emt 0:00:28]} 8. Qxb7 {[%emt 0:01:24]} Qb6 {[%emt 0:00:12]} 9. Qxb6 {[%emt 0:02:23]} axb6 {[%emt 0:00:16]} 10. Nf3 {[%emt 0:02:11]} Nc6 {[%emt 0:03:25]} 11. Ne5 {[%emt 0:09:21]} Rfc8 {[%emt 0:15:34]} 12. dxc5 {[%emt 0:02:09]} Nxe5 {[%emt 0:10:58]} 13. cxb6 {[%emt 0:07:27]} Rab8 {[%emt 0:07:23]} 14. Bxe5 {[%emt 0:15:32]} Rxb6 {[%emt 0:00:17]} 15. Rc2 {[%emt 0:15:12]} dxc4 {[%emt 0:02:29]} 16. Bd4 {[%emt 0:01:45]} Rbb8 {[%emt 0:25:50]} 17. Be2 {[%emt 0:01:44]} Bf5 {[%emt 0:11:18]} 18. Rd2 {[%emt 0:00:08]} Ne4 {[%emt 0:01:52]} 19. Nxe4 {[%emt 0:00:14]} Bxe4 {[%emt 0:00:02]} 20. f3 {[%emt 0:10:34]} Bxd4 {[%emt 0:02:03]} 21. exd4 {[%emt 0:02:19]} Bd5 {[%emt 0:02:25]} 22. Rc2 {[%emt 0:00:54]} Ra8 {[%emt 0:02:20]} 23. a3 {[%emt 0:00:18]} c3 {[%emt 0:00:49]} 24. bxc3 {[%emt 0:01:35]} Rxa3 {[%emt 0:00:22]} 25. Kd2 {[%emt 0:00:10]} Bc4 {[%emt 0:04:33]} 26. Bxc4 {[%emt 0:00:09]} Rxc4 {[%emt 0:00:06]} 27. Rb1 {[%emt 0:00:06]} Kg7 {[%emt 0:01:17]} 28. Kd3 {[%emt 0:00:09]} Rc7 {[%emt 0:00:28]} 29. Rb4 {[%emt 0:00:28]} Kf6 {[%emt 0:00:31]} 30. Rc4 {[%emt 0:01:08]} Rb7 {[%emt 0:00:25]} 31. Ke4 {[%emt 0:01:34]} e6 {[%emt 0:00:54]} 32. Rc6 {[%emt 0:00:14]} Ke7 {[%emt 0:00:23]} 33. c4 {[%emt 0:01:50]} f6 {[%emt 0:01:18]} 34. Rc8 {[%emt 0:00:16]} g5 {[%emt 0:00:48]} 35. d5 {[%emt 0:02:31]} exd5+ {[%emt 0:01:52]} 36. Kxd5 {[%emt 0:04:44]} Rd7+ {[%emt 0:03:39]} 37. Ke4 {[%emt 0:00:09]} Ke6 {[%emt 0:00:36]} 38. Rc6+ {[%emt 0:00:17]} Ke7 {[%emt 0:00:22]} 39. f4 {[%emt 0:02:30]} Rd6 {[%emt 0:01:24]} 40. Rxd6 {[%emt 0:00:51]} Kxd6 {[%emt 0:00:07]} 41. fxg5 {[%emt 0:30:10]} fxg5 {[%emt 0:30:27]} 42. Kf5 {[%emt 0:00:47]} h6 {[%emt 0:00:29]} 43. Kg6 {[%emt 0:00:23]} Ke5 {[%emt 0:00:26]} 44. Kxh6 {[%emt 0:00:23]} Kf4 {[%emt 0:00:34]} 45. c5 {[%emt 0:01:04]} Ra7 {[%emt 0:00:20]} 46. c6 {[%emt 0:00:07]} Rc7 {[%emt 0:00:05]} 47. Rc4+ {[%emt 0:00:09]} Kf5 {[%emt 0:00:26]} 48. Rc5+ {[%emt 0:00:06]} Kf4 {[%emt 0:00:09]} 49. g3+ {[%emt 0:00:14]} Kf3 {[%emt 0:00:10]} 50. Kxg5 {[%emt 0:00:07]} Kg2 {[%emt 0:00:08]} 51. h4 {[%emt 0:00:12]} Kxg3 {[%emt 0:00:06]} 52. Rc3+ {[%emt 0:00:05]} Kf2 {[%emt 0:00:15]} 53. Kg6 {[%emt 0:00:06]} 1-0

[Event "Nordic Chess-ch 2019"]
[Site "Sarpsborg"]
[Date "2019.06.25"]
[Round "7.23"]
[White "Asbjornsen, Jakob"]
[Black "Stabbetorp, Jon Anders"]
[Result "1-0"]
[ECO "C54"]
[WhiteElo "1359"]
[BlackElo "1817"]
[Annotator "NA"]
[PlyCount "87"]
[EventDate "2019.06.21"]
[EventType "swiss"]
[EventCountry "NOR"]
[SourceTitle "playchess.com"]
[Source "ChessBase"]
[SourceQuality "1"]
[TimeControl "40/5400+30:1800+30"]

1. e4 {[%emt 0:00:00]} e5 {[%emt 0:09:00]} 2. Nf3 {[%emt 0:00:00]} Nc6 {[%emt 0:00:04]} 3. Bc4 {[%emt 0:00:00]} Bc5 {[%emt 0:00:11]} 4. c3 {[%emt 0:00:01]} Nf6 {[%emt 0:00:10]} 5. d3 {[%emt 0:00:14]} a6 {[%emt 0:01:40]} 6. O-O {[%emt 0:02:12]} d6 {[%emt 0:01:38]} 7. h3 {[%emt 0:00:53]} Be6 {[%emt 0:01:45]} 8. Nbd2 {[%emt 0:00:38]} Qd7 {[%emt 0:02:39]} 9. Qb3 {[%emt 0:03:27]} O-O-O {[%emt 0:08:22]} 10. Bxe6 {[%emt 0:02:02]} fxe6 {[%emt 0:00:40]} 11. Nc4 {[%emt 0:06:32]} h6 {[%emt 0:01:31]} 12. Be3 {[%emt 0:01:32]} Bxe3 {[%emt 0:00:55]} 13. fxe3 {[%emt 0:00:40]} g5 {[%emt 0:00:20]} 14. Nfxe5 {[%emt 0:03:16]} dxe5 {[%emt 0:03:02]} 15. Rxf6 {[%emt 0:00:31]} Qxd3 {[%emt 0:02:36]} 16. Rxe6 {[%emt 0:03:37]} Qxe4 {[%emt 0:02:06]} 17. a4 {[%emt 0:07:45]} b6 {[%emt 0:04:31]} 18. Nxb6+ {[%emt 0:06:02]} cxb6 {[%emt 0:08:31]} 19. Qxb6 {[%emt 0:00:08]} Kd7 {[%emt 0:01:56]} 20. Rxc6 {[%emt 0:03:24]} Qxc6 {[%emt 0:05:17]} 21. Rd1+ {[%emt 0:00:19]} Ke7 {[%emt 0:00:06]} 22. Qxc6 {[%emt 0:00:33]} Rxd1+ {[%emt 0:00:08]} 23. Kh2 {[%emt 0:00:44]} Rd6 {[%emt 0:03:15]} 24. Qc7+ {[%emt 0:03:21]} Ke6 {[%emt 0:01:09]} 25. Qg7 {[%emt 0:00:18]} Rb8 {[%emt 0:00:28]} 26. Qxh6+ {[%emt 0:00:35]} Kd7 {[%emt 0:00:10]} 27. Qg7+ {[%emt 0:00:53]} Ke6 {[%emt 0:01:14]} 28. b4 {[%emt 0:01:14]} Rc6 {[%emt 0:01:11]} 29. Qg6+ {[%emt 0:02:43]} Kd7 {[%emt 0:00:59]} 30. Qf7+ {[%emt 0:01:31]} Kc8 {[%emt 0:04:22]} 31. Qe8+ {[%emt 0:01:13]} Kb7 {[%emt 0:00:09]} 32. Qxe5 {[%emt 0:00:23]} Rbc8 {[%emt 0:00:07]} 33. Qxg5 {[%emt 0:02:21]} Rxc3 {[%emt 0:00:08]} 34. Qe7+ {[%emt 0:01:58]} R8c7 {[%emt 0:00:53]} 35. Qe4+ {[%emt 0:00:46]} Ka7 {[%emt 0:00:49]} 36. Qd4+ {[%emt 0:00:54]} Kb7 {[%emt 0:00:52]} 37. a5 {[%emt 0:02:13]} R7c6 {[%emt 0:03:03]} 38. e4 {[%emt 0:00:28]} R3c4 {[%emt 0:00:17]} 39. Qd7+ {[%emt 0:01:32]} Rc7 {[%emt 0:01:28]} 40. Qd6 {[%emt 0:02:44]} R7c6 {[%emt 0:01:15]} 41. Qf8 {[%emt 0:33:13]} Rxe4 {[%emt 0:34:47]} 42. Qf7+ {[%emt 0:00:49]} Kc8 {[%emt 0:00:14]} 43. Qg8+ {[%emt 0:02:08]} Kd7 {[%emt 0:00:11]} 44. Qd5+ {[%emt 0:01:17]} 1-0

[Event "Nordic Chess-ch 2019"]
[Site "Sarpsborg"]
[Date "2019.06.25"]
[Round "7.24"]
[White "Johansen, Kolbjorn-Albin"]
[Black "Skaar, Ben Samuel Groth"]
[Result "1-0"]
[ECO "D00"]
[WhiteElo "1690"]
[BlackElo "1362"]
[Annotator "NA"]
[PlyCount "75"]
[EventDate "2019.06.21"]
[EventType "swiss"]
[EventCountry "NOR"]
[SourceTitle "playchess.com"]
[Source "ChessBase"]
[SourceQuality "1"]
[TimeControl "40/5400+30:1800+30"]

1. d4 {[%emt 0:00:00]} d5 {[%emt 0:00:00]} 2. Bf4 {[%emt 0:00:00]} Nf6 {[%emt 0:00:00]} 3. e3 {[%emt 0:00:00]} e6 {[%emt 0:00:00]} 4. Nd2 {[%emt 0:00:00]} Be7 {[%emt 0:00:27]} 5. Bd3 {[%emt 0:00:28]} Nbd7 {[%emt 0:00:10]} 6. h3 {[%emt 0:00:42]} c5 {[%emt 0:00:12]} 7. c3 {[%emt 0:00:07]} b6 {[%emt 0:00:14]} 8. Ngf3 {[%emt 0:00:13]} Bb7 {[%emt 0:00:21]} 9. Qe2 {[%emt 0:00:35]} h6 {[%emt 0:00:26]} 10. Ne5 {[%emt 0:06:59]} Nxe5 {[%emt 0:03:57]} 11. Bxe5 {[%emt 0:00:17]} O-O {[%emt 0:02:15]} 12. O-O {[%emt 0:02:49]} Bd6 {[%emt 0:00:30]} 13. Bxd6 {[%emt 0:07:51]} Qxd6 {[%emt 0:00:30]} 14. f4 {[%emt 0:02:57]} Rac8 {[%emt 0:02:40]} 15. Qf3 {[%emt 0:15:38]} Rfe8 {[%emt 0:10:14]} 16. Rad1 {[%emt 0:06:24]} Qd7 {[%emt 0:05:01]} 17. Qe2 {[%emt 0:09:10]} c4 {[%emt 0:08:03]} 18. Bc2 {[%emt 0:05:28]} Qb5 {[%emt 0:04:46]} 19. Rb1 {[%emt 0:03:42]} Nd7 {[%emt 0:07:35]} 20. e4 {[%emt 0:03:13]} dxe4 {[%emt 0:06:09]} 21. Bxe4 {[%emt 0:04:09]} Bxe4 {[%emt 0:01:21]} 22. Nxe4 {[%emt 0:00:02]} f6 {[%emt 0:02:36]} 23. Nd6 {[%emt 0:01:41]} Qc6 {[%emt 0:03:06]} 24. Nxc8 {[%emt 0:00:27]} Qxc8 {[%emt 0:00:06]} 25. Rbe1 {[%emt 0:02:55]} e5 {[%emt 0:03:10]} 26. Qf3 {[%emt 0:03:02]} exd4 {[%emt 0:05:20]} 27. Qd5+ {[%emt 0:01:02]} Kh8 {[%emt 0:00:28]} 28. cxd4 {[%emt 0:01:49]} Rxe1 {[%emt 0:01:18]} 29. Rxe1 {[%emt 0:00:09]} Nf8 {[%emt 0:00:25]} 30. Qf7 {[%emt 0:01:25]} Qd8 {[%emt 0:04:25]} 31. d5 {[%emt 0:02:24]} b5 {[%emt 0:01:02]} 32. Kh1 {[%emt 0:02:32]} Qb6 {[%emt 0:01:08]} 33. Qxf8+ {[%emt 0:00:47]} Kh7 {[%emt 0:00:21]} 34. Qe7 {[%emt 0:01:54]} Qf2 {[%emt 0:00:47]} 35. Qe4+ {[%emt 0:02:01]} Kh8 {[%emt 0:00:17]} 36. Re2 {[%emt 0:03:18]} Qf1+ {[%emt 0:01:18]} 37. Kh2 {[%emt 0:00:10]} Qc1 {[%emt 0:00:30]} 38. f5 {[%emt 0:01:30]} 1-0

[Event "Nordic Chess-ch 2019"]
[Site "Sarpsborg"]
[Date "2019.06.25"]
[Round "7.25"]
[White "Haggar, Haytham"]
[Black "Henriksen, Morgan"]
[Result "1/2-1/2"]
[ECO "D31"]
[WhiteElo "1309"]
[BlackElo "1717"]
[Annotator "NA"]
[PlyCount "154"]
[EventDate "2019.06.21"]
[EventType "swiss"]
[EventCountry "NOR"]
[SourceTitle "playchess.com"]
[Source "ChessBase"]
[SourceQuality "1"]
[TimeControl "40/5400+30:1800+30"]

1. d4 {[%emt 0:00:00]} d5 {[%emt 0:00:00]} 2. c4 {[%emt 0:00:00]} c6 {[%emt 0:00:00]} 3. e3 {[%emt 0:01:33]} Nf6 {[%emt 0:00:00]} 4. Nc3 {[%emt 0:00:17]} e6 {[%emt 0:02:05]} 5. Bd3 {[%emt 0:01:07]} Nbd7 {[%emt 0:00:31]} 6. Nge2 {[%emt 0:00:37]} dxc4 {[%emt 0:00:32]} 7. Bxc4 {[%emt 0:00:10]} b5 {[%emt 0:00:20]} 8. Bd3 {[%emt 0:00:49]} Bb7 {[%emt 0:00:09]} 9. f3 {[%emt 0:01:14]} a6 {[%emt 0:01:49]} 10. O-O {[%emt 0:01:39]} c5 {[%emt 0:02:59]} 11. b3 {[%emt 0:04:20]} cxd4 {[%emt 0:05:13]} 12. Nxd4 {[%emt 0:01:40]} Qc7 {[%emt 0:06:08]} 13. Bb2 {[%emt 0:04:57]} Bc5 {[%emt 0:03:16]} 14. Qe2 {[%emt 0:09:34]} O-O {[%emt 0:05:28]} 15. Rac1 {[%emt 0:02:58]} Qb6 {[%emt 0:02:29]} 16. Rfe1 {[%emt 0:06:12]} Ne5 {[%emt 0:10:03]} 17. Bb1 {[%emt 0:07:28]} Bxd4 {[%emt 0:09:22]} 18. exd4 {[%emt 0:00:38]} Qxd4+ {[%emt 0:01:43]} 19. Kh1 {[%emt 0:00:10]} Ng6 {[%emt 0:04:47]} 20. Nxb5 {[%emt 0:01:13]} Qb6 {[%emt 0:01:43]} 21. Na3 {[%emt 0:03:36]} Rfd8 {[%emt 0:07:51]} 22. Nc4 {[%emt 0:03:02]} Qb5 {[%emt 0:00:25]} 23. Red1 {[%emt 0:09:02]} Bd5 {[%emt 0:05:17]} 24. Rd2 {[%emt 0:09:35]} Qb7 {[%emt 0:09:32]} 25. Rdc2 {[%emt 0:06:46]} Ne7 {[%emt 0:04:51]} 26. Ne5 {[%emt 0:01:18]} Rac8 {[%emt 0:00:10]} 27. Rxc8 {[%emt 0:05:01]} Rxc8 {[%emt 0:00:05]} 28. Rxc8+ {[%emt 0:00:39]} Qxc8 {[%emt 0:00:18]} 29. Bd3 {[%emt 0:03:49]} Bb7 {[%emt 0:00:19]} 30. Qd2 {[%emt 0:01:04]} Ned5 {[%emt 0:01:01]} 31. Bc4 {[%emt 0:01:54]} Qc5 {[%emt 0:01:11]} 32. Bd4 {[%emt 0:01:04]} Qb4 {[%emt 0:00:39]} 33. Qxb4 {[%emt 0:03:38]} Nxb4 {[%emt 0:00:05]} 34. a4 {[%emt 0:00:53]} Nfd5 {[%emt 0:01:08]} 35. a5 {[%emt 0:01:14]} g6 {[%emt 0:05:56]} 36. Nd7 {[%emt 0:01:03]} h5 {[%emt 0:01:18]} 37. Nf6+ {[%emt 0:00:52]} Nxf6 {[%emt 0:01:08]} 38. Bxf6 {[%emt 0:00:13]} Kf8 {[%emt 0:00:28]} 39. Kg1 {[%emt 0:01:06]} Nd5 {[%emt 0:00:48]} 40. Bd4 {[%emt 0:00:42]} Ke7 {[%emt 0:00:43]} 41. Kf2 {[%emt 0:30:14]} Kd6 {[%emt 0:34:36]} 42. g3 {[%emt 0:01:38]} Nc7 {[%emt 0:02:05]} 43. f4 {[%emt 0:00:57]} Bd5 {[%emt 0:00:21]} 44. Be5+ {[%emt 0:00:48]} Kc6 {[%emt 0:01:12]} 45. Bxc7 {[%emt 0:00:52]} Kxc7 {[%emt 0:00:05]} 46. Bxa6 {[%emt 0:02:37]} Bxb3 {[%emt 0:00:06]} 47. Ke3 {[%emt 0:00:33]} f6 {[%emt 0:00:00]} 48. Kd4 {[%emt 0:00:00]} Kd6 {[%emt 0:00:00]} 49. Bb7 {[%emt 0:00:00]} Kc7 {[%emt 0:00:00]} 50. a6 {[%emt 0:00:00]} Kb6 {[%emt 0:00:00]} 51. h4 {[%emt 0:00:00]} Bc2 {[%emt 0:00:00]} 52. Bc8 {[%emt 0:00:00]} Bf5 {[%emt 0:00:00]} 53. Bb7 {[%emt 0:00:00]} Bg4 {[%emt 0:00:00]} 54. Be4 {[%emt 0:00:00]} Kxa6 {[%emt 0:00:00]} 55. Bxg6 {[%emt 0:00:00]} Kb6 {[%emt 0:00:00]} 56. Be8 {[%emt 0:00:00]} Kc7 {[%emt 0:00:00]} 57. Kc5 {[%emt 0:00:00]} Kd8 {[%emt 0:00:00]} 58. Bc6 {[%emt 0:00:00]} Ke7 {[%emt 0:00:00]} 59. Be4 {[%emt 0:00:00]} Kd7 {[%emt 0:00:19]} 60. Kd4 {[%emt 0:00:00]} Kd6 {[%emt 0:00:27]} 61. Ke3 {[%emt 0:00:00]} e5 {[%emt 0:03:44]} 62. Bf3 {[%emt 0:00:00]} exf4+ {[%emt 0:01:49]} 63. Kxf4 {[%emt 0:00:15]} Bxf3 {[%emt 0:01:02]} 64. Kxf3 {[%emt 0:00:25]} Ke5 {[%emt 0:00:04]} 65. g4 {[%emt 0:00:35]} hxg4+ {[%emt 0:00:14]} 66. Kxg4 {[%emt 0:00:11]} f5+ {[%emt 0:00:11]} 67. Kg5 {[%emt 0:03:01]} f4 {[%emt 0:00:11]} 68. h5 {[%emt 0:00:21]} f3 {[%emt 0:00:08]} 69. h6 {[%emt 0:00:05]} f2 {[%emt 0:06:06]} 70. h7 {[%emt 0:09:21]} f1=Q {[%emt 0:00:00]} 71. h8=Q+ {[%emt 0:00:00]} Kd5 {[%emt 0:00:00]} 72. Qd8+ {[%emt 0:00:00]} Ke4 {[%emt 0:00:00]} 73. Qe7+ {[%emt 0:00:00]} Kf3 {[%emt 0:00:00]} 74. Qa3+ {[%emt 0:00:00]} Kg2 {[%emt 0:00:00]} 75. Qb2+ {[%emt 0:00:00]} Kg1 {[%emt 0:00:00]} 76. Qb6+ {[%emt 0:00:00]} Qf2 {[%emt 0:00:00]} 77. Qxf2+ {[%emt 0:03:30]} Kxf2 {[%emt 0:04:00]} 1/2-1/2

[Event "Nordic Chess-ch 2019"]
[Site "Sarpsborg"]
[Date "2019.06.25"]
[Round "7.26"]
[White "Berisha, Xhafer"]
[Black "Holand, Per Fredrik"]
[Result "1-0"]
[ECO "A85"]
[WhiteElo "1340"]
[BlackElo "1883"]
[Annotator "NA"]
[PlyCount "101"]
[EventDate "2019.06.21"]
[EventType "swiss"]
[EventCountry "NOR"]
[SourceTitle "playchess.com"]
[Source "ChessBase"]
[SourceQuality "1"]
[TimeControl "40/5400+30:1800+30"]

1. e3 {[%emt 0:01:29]} g6 {[%emt 0:09:48]} 2. c4 {[%emt 0:00:22]} Bg7 {[%emt 0:00:47]} 3. d4 {[%emt 0:00:31]} f5 {[%emt 0:00:59]} 4. Nc3 {[%emt 0:00:20]} Nf6 {[%emt 0:00:05]} 5. Bd3 {[%emt 0:01:12]} O-O {[%emt 0:00:26]} 6. Nge2 {[%emt 0:00:13]} d6 {[%emt 0:00:18]} 7. f4 {[%emt 0:00:29]} e5 {[%emt 0:02:52]} 8. fxe5 {[%emt 0:01:25]} dxe5 {[%emt 0:00:06]} 9. O-O {[%emt 0:01:17]} Nc6 {[%emt 0:10:00]} 10. d5 {[%emt 0:01:48]} Ne7 {[%emt 0:02:14]} 11. Ng3 {[%emt 0:00:55]} e4 {[%emt 0:01:31]} 12. Be2 {[%emt 0:00:16]} Kh8 {[%emt 0:01:19]} 13. Rb1 {[%emt 0:00:33]} Neg8 {[%emt 0:02:15]} 14. Nb5 {[%emt 0:01:22]} a6 {[%emt 0:04:42]} 15. Nd4 {[%emt 0:00:20]} Nh6 {[%emt 0:00:21]} 16. h3 {[%emt 0:00:48]} Qd6 {[%emt 0:01:41]} 17. Qe1 {[%emt 0:00:45]} c5 {[%emt 0:11:14]} 18. Nc2 {[%emt 0:10:49]} a5 {[%emt 0:03:46]} 19. Na3 {[%emt 0:00:59]} Bd7 {[%emt 0:00:08]} 20. Bd2 {[%emt 0:00:37]} g5 {[%emt 0:04:36]} 21. Bc3 {[%emt 0:03:05]} Rae8 {[%emt 0:03:33]} 22. Nb5 {[%emt 0:00:14]} Bxb5 {[%emt 0:00:12]} 23. cxb5 {[%emt 0:00:45]} f4 {[%emt 0:00:29]} 24. Nh5 {[%emt 0:01:46]} Nxh5 {[%emt 0:02:59]} 25. Bxh5 {[%emt 0:00:19]} Re7 {[%emt 0:02:55]} 26. Bxg7+ {[%emt 0:00:46]} Kxg7 {[%emt 0:00:07]} 27. Qc3+ {[%emt 0:00:51]} Rf6 {[%emt 0:03:46]} 28. exf4 {[%emt 0:00:49]} gxf4 {[%emt 0:00:37]} 29. Rbe1 {[%emt 0:00:27]} Qxd5 {[%emt 0:02:29]} 30. Rxf4 {[%emt 0:01:55]} Qe5 {[%emt 0:07:34]} 31. Rfxe4 {[%emt 0:04:55]} Qxe4 {[%emt 0:00:54]} 32. Rxe4 {[%emt 0:00:15]} Rxe4 {[%emt 0:00:14]} 33. Qxc5 {[%emt 0:01:14]} Ng8 {[%emt 0:04:51]} 34. Bf3 {[%emt 0:01:04]} Re7 {[%emt 0:00:50]} 35. Bd5 {[%emt 0:00:45]} b6 {[%emt 0:00:53]} 36. Qc4 {[%emt 0:00:25]} Nh6 {[%emt 0:00:31]} 37. Qc3 {[%emt 0:00:28]} Nf7 {[%emt 0:00:59]} 38. b4 {[%emt 0:01:04]} axb4 {[%emt 0:01:03]} 39. Qxb4 {[%emt 0:00:15]} Re5 {[%emt 0:01:24]} 40. Qc4 {[%emt 0:01:22]} Re7 {[%emt 0:02:47]} 41. Qc8 {[%emt 0:30:51]} Rg6 {[%emt 0:31:04]} 42. a4 {[%emt 0:00:40]} Ra7 {[%emt 0:01:21]} 43. Qc3+ {[%emt 0:00:31]} Kh6 {[%emt 0:01:18]} 44. Qd4 {[%emt 0:00:36]} Nd6 {[%emt 0:04:35]} 45. Qxb6 {[%emt 0:00:37]} Rxa4 {[%emt 0:00:33]} 46. Qe3+ {[%emt 0:00:32]} Kg7 {[%emt 0:00:18]} 47. b6 {[%emt 0:00:05]} Ra1+ {[%emt 0:00:43]} 48. Kh2 {[%emt 0:00:10]} Rb1 {[%emt 0:04:09]} 49. h4 {[%emt 0:01:06]} h5 {[%emt 0:00:00]} 50. Qe7+ {[%emt 0:00:00]} Kh6 {[%emt 0:00:00]} 51. b7 {[%emt 0:00:00]} 1-0